[Event "*** Titled Tuesday Blitz"]
[Site "Chess.com"]
[Date "2019.11.05"]
[Round "3"]
[White "HarutyunianTigranK"]
[Black "VincentKeymer"]
[Result "1/2-1/2"]
[WhiteElo "2811"]
[BlackElo "2548"]
[TimeControl "180+2"]
[EndTime "13:39:52 PST"]
[Termination "Game drawn by agreement"]

1. c4 {[%clk 0:03:01.9]} 1... c6 {[%clk 0:02:57.6]} 2. Nf3 {[%clk 0:02:59.8]}
2... d5 {[%clk 0:02:58.5]} 3. e3 {[%clk 0:03:00.4]} 3... Nf6 {[%clk 0:02:59.1]}
4. Nc3 {[%clk 0:02:59.9]} 4... e6 {[%clk 0:02:55.6]} 5. b3 {[%clk 0:03:00.2]}
5... Bd6 {[%clk 0:02:55]} 6. Bb2 {[%clk 0:03:01]} 6... O-O {[%clk 0:02:56.6]} 7.
d4 {[%clk 0:03:01.6]} 7... Nbd7 {[%clk 0:02:55.4]} 8. Be2 {[%clk 0:02:53.3]}
8... b6 {[%clk 0:02:55.2]} 9. O-O {[%clk 0:02:53.8]} 9... Bb7 {[%clk 0:02:55.3]}
10. Bd3 {[%clk 0:02:52.6]} 10... Qe7 {[%clk 0:02:52.1]} 11. Qe2 {[%clk
0:02:50.7]} 11... dxc4 {[%clk 0:02:48.3]} 12. bxc4 {[%clk 0:02:50.8]} 12... c5
{[%clk 0:02:49.3]} 13. Rad1 {[%clk 0:02:43.5]} 13... cxd4 {[%clk 0:02:44.2]} 14.
exd4 {[%clk 0:02:43.9]} 14... Rfe8 {[%clk 0:02:25]} 15. Nb5 {[%clk 0:02:40.3]}
15... a6 {[%clk 0:02:17.7]} 16. Nxd6 {[%clk 0:02:40.8]} 16... Qxd6 {[%clk
0:02:19.6]} 17. Rfe1 {[%clk 0:02:28.4]} 17... Rad8 {[%clk 0:02:16.7]} 18. h3
{[%clk 0:02:24.3]} 18... Nf8 {[%clk 0:01:53.1]} 19. Qe3 {[%clk 0:02:20.6]} 19...
Ng6 {[%clk 0:01:52.1]} 20. Bf1 {[%clk 0:01:52.6]} 20... b5 {[%clk 0:01:31.8]}
21. cxb5 {[%clk 0:01:48.4]} 21... Nd5 {[%clk 0:01:31.6]} 22. Qa3 {[%clk
0:01:46.1]} 22... Qxa3 {[%clk 0:01:28.8]} 23. Bxa3 {[%clk 0:01:46.7]} 23... Nc3
{[%clk 0:01:30.4]} 24. bxa6 {[%clk 0:01:39.7]} 24... Bxf3 {[%clk 0:01:29.1]} 25.
Rd3 {[%clk 0:01:40.4]} 25... Ne2+ {[%clk 0:01:16.8]} 26. Bxe2 {[%clk 0:01:38.7]}
26... Bxe2 {[%clk 0:01:16.3]} 27. Rxe2 {[%clk 0:01:40.6]} 27... Nf4 {[%clk
0:01:17.6]} 28. Red2 {[%clk 0:01:24.7]} 28... Nxd3 {[%clk 0:01:17.9]} 29. Rxd3
{[%clk 0:01:24.6]} 29... Ra8 {[%clk 0:01:17.7]} 30. Bc5 {[%clk 0:01:14.8]} 30...
Rxa6 {[%clk 0:01:17.7]} 31. a3 {[%clk 0:01:16]} 31... Rd8 {[%clk 0:01:16.7]} 32.
Rb3 {[%clk 0:01:15.6]} 32... h6 {[%clk 0:01:13.1]} 33. Rb7 {[%clk 0:01:15.8]}
33... Rc6 {[%clk 0:01:09.8]} 34. a4 {[%clk 0:00:57.5]} 34... Ra6 {[%clk
0:01:07.2]} 35. Bb6 {[%clk 0:00:57]} 35... Rd5 {[%clk 0:00:54.4]} 36. a5 {[%clk
0:00:57.5]} 36... g5 {[%clk 0:00:55.4]} 37. g4 {[%clk 0:00:48.8]} 37... Kg7
{[%clk 0:00:52.5]} 38. Kg2 {[%clk 0:00:49]} 38... h5 {[%clk 0:00:49.1]} 39. Kf3
{[%clk 0:00:41.2]} 39... h4 {[%clk 0:00:48.1]} 40. Ke4 {[%clk 0:00:41.4]} 40...
Rdxa5 {[%clk 0:00:42.2]} 41. Bxa5 {[%clk 0:00:42.1]} 41... Rxa5 {[%clk
0:00:44.1]} 42. Rb3 {[%clk 0:00:43.2]} 42... Ra2 {[%clk 0:00:37.5]} 43. f4
{[%clk 0:00:42.5]} 43... Re2+ {[%clk 0:00:32.7]} 44. Kd3 {[%clk 0:00:35.2]}
44... Rg2 {[%clk 0:00:27.4]} 45. Ke4 {[%clk 0:00:28.3]} 45... Rg3 {[%clk
0:00:26.4]} 46. Rf3 {[%clk 0:00:16.6]} 46... f5+ {[%clk 0:00:21.2]} 47. gxf5
{[%clk 0:00:10.4]} 47... exf5+ {[%clk 0:00:22.2]} 48. Ke3 {[%clk 0:00:11.7]}
48... Kf6 {[%clk 0:00:20.8]} 49. fxg5+ {[%clk 0:00:12.7]} 49... Rxg5 {[%clk
0:00:20.9]} 50. Kf4 {[%clk 0:00:12.6]} 50... Rg1 {[%clk 0:00:21.2]} 51. Ra3
{[%clk 0:00:11.5]} 51... Rf1+ {[%clk 0:00:22.4]} 52. Ke3 {[%clk 0:00:12.7]}
52... Re1+ {[%clk 0:00:23.4]} 53. Kf3 {[%clk 0:00:13.6]} 53... Re4 {[%clk
0:00:24.3]} 54. Rd3 {[%clk 0:00:13.1]} 54... Ke6 {[%clk 0:00:25.2]} 55. d5+
{[%clk 0:00:13.9]} 55... Kd6 {[%clk 0:00:26.3]} 56. Rd2 {[%clk 0:00:12.1]} 56...
Ra4 {[%clk 0:00:27.2]} 57. Rd3 {[%clk 0:00:12.7]} 57... Rb4 {[%clk 0:00:27.8]}
58. Rd2 {[%clk 0:00:09.5]} 58... Rb3+ {[%clk 0:00:27.3]} 59. Kf4 {[%clk
0:00:10.6]} 59... Rxh3 {[%clk 0:00:28.2]} 60. Kxf5 {[%clk 0:00:12]} 60... Rg3
{[%clk 0:00:29.6]} 61. Kf4 {[%clk 0:00:13]} 61... Rg8 {[%clk 0:00:30.5]} 62. Rh2
{[%clk 0:00:13.4]} 62... Rh8 {[%clk 0:00:31.1]} 63. Kg4 {[%clk 0:00:14.6]}
1/2-1/2

[Event "*** Titled Tuesday Blitz"]
[Site "Chess.com"]
[Date "2019.11.05"]
[Round "3"]
[White "Vasily85"]
[Black "2nd_life"]
[Result "0-1"]
[WhiteElo "2174"]
[BlackElo "2396"]
[TimeControl "180+2"]
[EndTime "13:39:54 PST"]
[Termination "2nd_life won on time"]

1. Nf3 {[%clk 0:03:01.9]} 1... Nf6 {[%clk 0:02:59.5]} 2. g3 {[%clk 0:03:02.2]}
2... d5 {[%clk 0:02:59.8]} 3. Bg2 {[%clk 0:03:03.6]} 3... c6 {[%clk 0:03:00.7]}
4. O-O {[%clk 0:03:01.8]} 4... Bg4 {[%clk 0:02:59.5]} 5. c4 {[%clk 0:03:01.7]}
5... Nbd7 {[%clk 0:02:58.5]} 6. cxd5 {[%clk 0:03:01.8]} 6... cxd5 {[%clk
0:02:59.5]} 7. h3 {[%clk 0:03:01]} 7... Bh5 {[%clk 0:02:58.2]} 8. Nc3 {[%clk
0:02:44.8]} 8... e6 {[%clk 0:02:56.6]} 9. d3 {[%clk 0:02:40.4]} 9... Bc5 {[%clk
0:02:53.3]} 10. Bf4 {[%clk 0:02:25]} 10... O-O {[%clk 0:02:41]} 11. d4 {[%clk
0:02:26]} 11... Bb4 {[%clk 0:02:38.8]} 12. Qb3 {[%clk 0:02:23.8]} 12... Qb6
{[%clk 0:02:36.8]} 13. Na4 {[%clk 0:02:03.3]} 13... Qa5 {[%clk 0:02:32.7]} 14.
a3 {[%clk 0:02:04.2]} 14... Be7 {[%clk 0:02:31.7]} 15. Rfc1 {[%clk 0:01:55.4]}
15... Bxf3 {[%clk 0:02:22.5]} 16. Bxf3 {[%clk 0:01:54.6]} 16... Qa6 {[%clk
0:02:04.6]} 17. Nc3 {[%clk 0:01:50.8]} 17... Rfc8 {[%clk 0:01:59]} 18. Kg2
{[%clk 0:01:48.3]} 18... Bd6 {[%clk 0:01:49.3]} 19. Bg5 {[%clk 0:01:41.4]} 19...
h6 {[%clk 0:01:41.5]} 20. Bd2 {[%clk 0:01:26.3]} 20... Nb6 {[%clk 0:01:31.3]}
21. Nb5 {[%clk 0:01:18.5]} 21... Nc4 {[%clk 0:01:28.9]} 22. Nxd6 {[%clk
0:01:00.7]} 22... Qxd6 {[%clk 0:01:22.6]} 23. Bb4 {[%clk 0:01:00.6]} 23... Qb6
{[%clk 0:01:21.6]} 24. Rc3 {[%clk 0:00:54.6]} 24... Nd2 {[%clk 0:01:06.4]} 25.
Qd1 {[%clk 0:00:37.2]} 25... Rxc3 {[%clk 0:01:02]} 26. Bxc3 {[%clk 0:00:36.7]}
26... Nxf3 {[%clk 0:00:59.1]} 27. exf3 {[%clk 0:00:34.5]} 27... Rc8 {[%clk
0:00:59.1]} 28. Rc1 {[%clk 0:00:32.4]} 28... Rc4 {[%clk 0:00:57.8]} 29. Qe2
{[%clk 0:00:28.1]} 29... Qc7 {[%clk 0:00:50.1]} 30. h4 {[%clk 0:00:16.3]} 30...
b6 {[%clk 0:00:32.7]} 31. Rd1 {[%clk 0:00:16.9]} 31... a5 {[%clk 0:00:32.1]} 32.
Qe5 {[%clk 0:00:09.8]} 32... Qxe5 {[%clk 0:00:28.4]} 33. dxe5 {[%clk 0:00:11.7]}
33... Nd7 {[%clk 0:00:29.5]} 34. f4 {[%clk 0:00:10.7]} 34... h5 {[%clk
0:00:27.8]} 35. Kf3 {[%clk 0:00:10.6]} 35... g6 {[%clk 0:00:28.3]} 36. Ke3
{[%clk 0:00:11.3]} 36... Nc5 {[%clk 0:00:28.2]} 37. Rd4 {[%clk 0:00:11.3]} 37...
Nb3 {[%clk 0:00:21.1]} 38. Rxc4 {[%clk 0:00:10.6]} 38... dxc4 {[%clk 0:00:23]}
39. Ke4 {[%clk 0:00:11]} 39... Kf8 {[%clk 0:00:23.6]} 40. Bd4 {[%clk 0:00:09.5]}
40... b5 {[%clk 0:00:23.9]} 41. Bc3 {[%clk 0:00:09.5]} 41... Ke7 {[%clk
0:00:24.7]} 42. f3 {[%clk 0:00:07.9]} 42... Kd7 {[%clk 0:00:20]} 43. g4 {[%clk
0:00:09.2]} 43... Kc6 {[%clk 0:00:20.8]} 44. gxh5 {[%clk 0:00:06]} 44... gxh5
{[%clk 0:00:21.5]} 45. f5 {[%clk 0:00:07.9]} 45... Nc5+ {[%clk 0:00:19.6]} 46.
Ke3 {[%clk 0:00:08.5]} 46... exf5 {[%clk 0:00:17.4]} 47. Bxa5 {[%clk 0:00:08.2]}
47... Ne6 {[%clk 0:00:18.6]} 48. Bc3 {[%clk 0:00:06.2]} 48... f4+ {[%clk
0:00:16.4]} 49. Ke4 {[%clk 0:00:07.1]} 49... Kd7 {[%clk 0:00:05.7]} 50. Kf5
{[%clk 0:00:08.2]} 50... Ke7 {[%clk 0:00:06.3]} 51. Bd2 {[%clk 0:00:06.8]} 51...
Ke8 {[%clk 0:00:04.2]} 52. Bxf4 {[%clk 0:00:07.3]} 52... Nd4+ {[%clk 0:00:05.6]}
53. Ke4 {[%clk 0:00:06]} 53... Ne2 {[%clk 0:00:06.4]} 54. Be3 {[%clk 0:00:04.5]}
54... c3 {[%clk 0:00:05.8]} 55. bxc3 {[%clk 0:00:04.4]} 55... Nxc3+ {[%clk
0:00:07.7]} 0-1

[Event "*** Titled Tuesday Blitz"]
[Site "Chess.com"]
[Date "2019.11.05"]
[Round "3"]
[White "Eloist"]
[Black "Ginger_GM"]
[Result "0-1"]
[WhiteElo "2181"]
[BlackElo "2485"]
[TimeControl "180+2"]
[EndTime "13:39:55 PST"]
[Termination "Ginger_GM won by resignation"]

1. e4 {[%clk 0:03:01.1]} 1... e6 {[%clk 0:02:50.7]} 2. d4 {[%clk 0:03:01.3]}
2... a6 {[%clk 0:02:49.4]} 3. c4 {[%clk 0:02:53.5]} 3... b5 {[%clk 0:02:49.7]}
4. cxb5 {[%clk 0:02:43.7]} 4... Bb7 {[%clk 0:02:45.5]} 5. Nc3 {[%clk 0:02:41.2]}
5... Bb4 {[%clk 0:02:35]} 6. Qg4 {[%clk 0:02:36.3]} 6... Nf6 {[%clk 0:02:20.5]}
7. Qxg7 {[%clk 0:02:36]} 7... Rg8 {[%clk 0:02:21.5]} 8. Qh6 {[%clk 0:02:36.6]}
8... Nxe4 {[%clk 0:02:22.9]} 9. Qxh7 {[%clk 0:02:24.5]} 9... Rf8 {[%clk
0:01:59.2]} 10. a3 {[%clk 0:02:11.3]} 10... Qf6 {[%clk 0:01:57.1]} 11. Nf3
{[%clk 0:02:07.1]} 11... Rh8 {[%clk 0:01:38.2]} 12. Qxh8+ {[%clk 0:02:04.4]}
12... Qxh8 {[%clk 0:01:38]} 13. axb4 {[%clk 0:02:05.8]} 13... Nxc3 {[%clk
0:01:38.6]} 14. bxc3 {[%clk 0:02:06.4]} 14... axb5 {[%clk 0:01:37.3]} 15. Rxa8
{[%clk 0:02:06.2]} 15... Bxa8 {[%clk 0:01:39.2]} 16. Bf4 {[%clk 0:01:51.4]}
16... d6 {[%clk 0:01:38.3]} 17. Bxb5+ {[%clk 0:01:49.7]} 17... Nd7 {[%clk
0:01:36.7]} 18. O-O {[%clk 0:01:45.7]} 18... Qh5 {[%clk 0:01:25.9]} 19. Be2
{[%clk 0:01:37.1]} 19... Nf6 {[%clk 0:01:24.4]} 20. Ra1 {[%clk 0:01:33.9]} 20...
Be4 {[%clk 0:01:24.5]} 21. h3 {[%clk 0:01:18.9]} 21... Nd5 {[%clk 0:01:22.7]}
22. Bd2 {[%clk 0:01:08.4]} 22... Qg6 {[%clk 0:01:14]} 23. c4 {[%clk 0:01:02.8]}
23... Nf6 {[%clk 0:01:12]} 24. Ra5 {[%clk 0:00:48.1]} 24... Kd7 {[%clk
0:01:01.9]} 25. Nh4 {[%clk 0:00:46]} 25... Qh7 {[%clk 0:00:45.1]} 26. Bg5 {[%clk
0:00:43.9]} 26... Ne8 {[%clk 0:00:40.6]} 27. Nf3 {[%clk 0:00:28]} 27... Bb7
{[%clk 0:00:33.6]} 28. Rb5 {[%clk 0:00:18.1]} 28... Bc6 {[%clk 0:00:34]} 29. Rb8
{[%clk 0:00:18]} 29... f6 {[%clk 0:00:33.4]} 30. Be3 {[%clk 0:00:18]} 30... Be4
{[%clk 0:00:30.7]} 31. c5 {[%clk 0:00:16.8]} 31... Qf5 {[%clk 0:00:28.2]} 32.
Bb5+ {[%clk 0:00:15.4]} 32... c6 {[%clk 0:00:25.4]} 33. Rb7+ {[%clk 0:00:16.3]}
33... Nc7 {[%clk 0:00:25.9]} 34. Be2 {[%clk 0:00:15.6]} 34... e5 {[%clk
0:00:23.6]} 35. cxd6 {[%clk 0:00:15.3]} 35... Kxd6 {[%clk 0:00:24.8]} 36. dxe5+
{[%clk 0:00:16.3]} 36... fxe5 {[%clk 0:00:25.7]} 37. Bc5+ {[%clk 0:00:17]} 37...
Kd7 {[%clk 0:00:27.2]} 38. Nd2 {[%clk 0:00:17.7]} 38... Qg6 {[%clk 0:00:17.2]}
39. Bb6 {[%clk 0:00:16.4]} 39... Ke6 {[%clk 0:00:17.8]} 40. Bg4+ {[%clk
0:00:16.8]} 40... Kd5 {[%clk 0:00:16.3]} 41. Rxc7 {[%clk 0:00:17.9]} 41... Bf5
{[%clk 0:00:14.4]} 42. Bxf5 {[%clk 0:00:16.9]} 42... Qxf5 {[%clk 0:00:15.6]} 43.
f3 {[%clk 0:00:16.6]} 43... Ke6 {[%clk 0:00:14.3]} 44. Ne4 {[%clk 0:00:17.4]}
44... Qf4 {[%clk 0:00:14.4]} 45. Rxc6+ {[%clk 0:00:18.2]} 45... Kd7 {[%clk
0:00:10.8]} 46. Rd6+ {[%clk 0:00:18.7]} 46... Ke7 {[%clk 0:00:12]} 47. Bc5
{[%clk 0:00:19.4]} 47... Qc1+ {[%clk 0:00:12.8]} 48. Kh2 {[%clk 0:00:19.1]}
48... Kf7 {[%clk 0:00:14.7]} 49. Rf6+ {[%clk 0:00:18.4]} 49... Kg7 {[%clk
0:00:15.6]} 50. h4 {[%clk 0:00:19.1]} 50... Qe1 {[%clk 0:00:12.6]} 51. Kh3
{[%clk 0:00:18.9]} 51... Qh1+ {[%clk 0:00:13.2]} 52. Kg3 {[%clk 0:00:19.9]}
52... Qe1+ {[%clk 0:00:14.7]} 53. Kg4 {[%clk 0:00:21]} 53... Qh1 {[%clk
0:00:15.3]} 54. h5 {[%clk 0:00:21.9]} 54... Qxg2+ {[%clk 0:00:16.1]} 55. Ng3
{[%clk 0:00:22.9]} 55... Kh7 {[%clk 0:00:16.5]} 56. Rg6 {[%clk 0:00:22.9]} 56...
Qc2 {[%clk 0:00:14.9]} 57. Nf5 {[%clk 0:00:22.1]} 57... Qc4+ {[%clk 0:00:15.9]}
58. Kg5 {[%clk 0:00:22.5]} 58... Qf4+ {[%clk 0:00:16.9]} 59. Kf6 {[%clk
0:00:23.6]} 59... Qxf3 {[%clk 0:00:17.1]} 60. h6 {[%clk 0:00:19.8]} 60... Qc6+
{[%clk 0:00:16.6]} 61. Kg5 {[%clk 0:00:19.9]} 61... Qxg6+ {[%clk 0:00:17.3]} 62.
Kh4 {[%clk 0:00:18.9]} 62... Qxf5 {[%clk 0:00:18.5]} 0-1

[Event "*** Titled Tuesday Blitz"]
[Site "Chess.com"]
[Date "2019.11.05"]
[Round "3"]
[White "Orest_Vovk"]
[Black "Mesutgm"]
[Result "1-0"]
[WhiteElo "2423"]
[BlackElo "2597"]
[TimeControl "180+2"]
[EndTime "13:39:56 PST"]
[Termination "Orest_Vovk won by resignation"]

1. h3 {[%clk 0:03:01.9]} 1... d5 {[%clk 0:03:00.3]} 2. e4 {[%clk 0:03:02.3]}
2... dxe4 {[%clk 0:02:56.4]} 3. Nc3 {[%clk 0:03:02.5]} 3... Bd7 {[%clk
0:02:54.9]} 4. Nxe4 {[%clk 0:03:02.4]} 4... Bc6 {[%clk 0:02:56]} 5. d3 {[%clk
0:02:51.6]} 5... Nd7 {[%clk 0:02:54.5]} 6. Nf3 {[%clk 0:02:51.2]} 6... e5 {[%clk
0:02:54.2]} 7. Be2 {[%clk 0:02:46.9]} 7... Ngf6 {[%clk 0:02:54.6]} 8. Nxf6+
{[%clk 0:02:46.4]} 8... Qxf6 {[%clk 0:02:54.9]} 9. O-O {[%clk 0:02:46.4]} 9...
h6 {[%clk 0:02:54.2]} 10. Nd2 {[%clk 0:02:47.1]} 10... Bc5 {[%clk 0:02:42.1]}
11. Bf3 {[%clk 0:02:46.9]} 11... Bxf3 {[%clk 0:02:41.8]} 12. Qxf3 {[%clk
0:02:46]} 12... O-O-O {[%clk 0:02:40.1]} 13. Qxf6 {[%clk 0:02:34.1]} 13... Nxf6
{[%clk 0:02:40.5]} 14. Nb3 {[%clk 0:02:34.5]} 14... Bb6 {[%clk 0:02:40.4]} 15.
Be3 {[%clk 0:02:34.8]} 15... Rhe8 {[%clk 0:02:31.9]} 16. Bxb6 {[%clk 0:02:33.2]}
16... axb6 {[%clk 0:02:33.8]} 17. Rfe1 {[%clk 0:02:33.9]} 17... e4 {[%clk
0:02:24.4]} 18. dxe4 {[%clk 0:02:32.9]} 18... Nxe4 {[%clk 0:02:26.3]} 19. Rad1
{[%clk 0:02:28.8]} 19... Rxd1 {[%clk 0:02:23.3]} 20. Rxd1 {[%clk 0:02:29.7]}
20... Nd6 {[%clk 0:02:23.4]} 21. Nd2 {[%clk 0:02:20]} 21... Re5 {[%clk
0:02:22.8]} 22. Kf1 {[%clk 0:02:05.7]} 22... Rc5 {[%clk 0:02:15.8]} 23. c3
{[%clk 0:02:01.2]} 23... Ra5 {[%clk 0:02:16.8]} 24. a3 {[%clk 0:01:59.2]} 24...
Rb5 {[%clk 0:02:17.8]} 25. b4 {[%clk 0:01:52.9]} 25... Rd5 {[%clk 0:02:18.7]}
26. Ke2 {[%clk 0:01:42.3]} 26... Nb5 {[%clk 0:02:13.1]} 27. Nb1 {[%clk
0:01:42.3]} 27... Re5+ {[%clk 0:02:00.2]} 28. Kf1 {[%clk 0:01:43.1]} 28... Nd6
{[%clk 0:01:56.9]} 29. Nd2 {[%clk 0:01:42.9]} 29... b5 {[%clk 0:01:57.4]} 30.
Re1 {[%clk 0:01:36.4]} 30... Rd5 {[%clk 0:01:55.1]} 31. Re2 {[%clk 0:01:36.3]}
31... Kd7 {[%clk 0:01:55.7]} 32. Ke1 {[%clk 0:01:33.8]} 32... Rd3 {[%clk
0:01:56.6]} 33. Re3 {[%clk 0:01:27.2]} 33... Rxe3+ {[%clk 0:01:52.4]} 34. fxe3
{[%clk 0:01:29.1]} 34... Ke6 {[%clk 0:01:53.2]} 35. Ke2 {[%clk 0:01:30.1]} 35...
Kd5 {[%clk 0:01:53.1]} 36. Kd3 {[%clk 0:01:25.8]} 36... f5 {[%clk 0:01:54.1]}
37. Nf3 {[%clk 0:01:16.1]} 37... c6 {[%clk 0:01:46.3]} 38. Nd2 {[%clk 0:00:54]}
38... Ke5 {[%clk 0:01:34]} 39. Nb3 {[%clk 0:00:31.8]} 39... Nc4 {[%clk
0:01:26.4]} 40. Nc5 {[%clk 0:00:21.7]} 40... b6 {[%clk 0:01:25.8]} 41. Nb3
{[%clk 0:00:14.6]} 41... Kd5 {[%clk 0:01:20.8]} 42. Nd4 {[%clk 0:00:09.3]} 42...
g6 {[%clk 0:01:21.6]} 43. Nf3 {[%clk 0:00:10.4]} 43... Ne5+ {[%clk 0:01:19.3]}
44. Nxe5 {[%clk 0:00:08.5]} 44... Kxe5 {[%clk 0:01:21.2]} 45. c4 {[%clk
0:00:09.9]} 45... g5 {[%clk 0:01:17.4]} 46. cxb5 {[%clk 0:00:06.3]} 46... cxb5
{[%clk 0:01:18]} 47. g3 {[%clk 0:00:06.7]} 47... Kd5 {[%clk 0:01:18.5]} 48. Kd2
{[%clk 0:00:07]} 48... Kc4 {[%clk 0:01:15.5]} 49. g4 {[%clk 0:00:06.7]} 49...
fxg4 {[%clk 0:00:38.4]} 50. hxg4 {[%clk 0:00:08.6]} 50... Kd5 {[%clk 0:00:39.6]}
51. Kd3 {[%clk 0:00:09.9]} 51... Ke5 {[%clk 0:00:40.8]} 52. e4 {[%clk
0:00:09.5]} 52... Kf4 {[%clk 0:00:41.7]} 53. Kd4 {[%clk 0:00:11.1]} 53... Kxg4
{[%clk 0:00:38.9]} 54. e5 {[%clk 0:00:13]} 54... Kf5 {[%clk 0:00:38.5]} 55. Kd5
{[%clk 0:00:14.1]} 55... g4 {[%clk 0:00:19]} 56. e6 {[%clk 0:00:16]} 56... g3
{[%clk 0:00:18.4]} 57. e7 {[%clk 0:00:16.8]} 57... g2 {[%clk 0:00:18.8]} 58.
e8=Q {[%clk 0:00:17.4]} 58... g1=Q {[%clk 0:00:20.1]} 59. Qf7+ {[%clk
0:00:15.7]} 1-0

[Event "*** Titled Tuesday Blitz"]
[Site "Chess.com"]
[Date "2019.11.05"]
[Round "3"]
[White "Cruel_Yaro"]
[Black "timator"]
[Result "1-0"]
[WhiteElo "2871"]
[BlackElo "2680"]
[TimeControl "180+2"]
[EndTime "13:40:03 PST"]
[Termination "Cruel_Yaro won by resignation"]

1. e4 {[%clk 0:03:01.9]} 1... c5 {[%clk 0:03:01]} 2. Nf3 {[%clk 0:03:02.4]} 2...
e6 {[%clk 0:03:02.3]} 3. g3 {[%clk 0:03:02]} 3... Nc6 {[%clk 0:03:01.4]} 4. Bg2
{[%clk 0:03:02.8]} 4... g6 {[%clk 0:03:02.6]} 5. O-O {[%clk 0:03:01.8]} 5... Bg7
{[%clk 0:03:03.9]} 6. c3 {[%clk 0:03:02.7]} 6... Nge7 {[%clk 0:03:04.5]} 7. d4
{[%clk 0:03:03.4]} 7... cxd4 {[%clk 0:03:05.8]} 8. cxd4 {[%clk 0:03:05]} 8... d5
{[%clk 0:03:07.2]} 9. e5 {[%clk 0:03:05.5]} 9... O-O {[%clk 0:03:08.5]} 10. Nc3
{[%clk 0:03:06.3]} 10... a6 {[%clk 0:03:05.2]} 11. h4 {[%clk 0:03:05.9]} 11...
h6 {[%clk 0:03:03.9]} 12. Bf4 {[%clk 0:03:05.4]} 12... Bd7 {[%clk 0:03:01.3]}
13. Qd2 {[%clk 0:03:05.9]} 13... Kh7 {[%clk 0:03:02.3]} 14. b3 {[%clk
0:03:00.1]} 14... Rc8 {[%clk 0:02:59.8]} 15. Rac1 {[%clk 0:02:59.7]} 15... b5
{[%clk 0:03:00.7]} 16. Ne2 {[%clk 0:02:57.7]} 16... Qa5 {[%clk 0:03:00.1]} 17.
Qb2 {[%clk 0:02:41.7]} 17... Qb6 {[%clk 0:02:50]} 18. g4 {[%clk 0:02:27.3]}
18... Rc7 {[%clk 0:02:33.4]} 19. Rc3 {[%clk 0:02:13]} 19... Rfc8 {[%clk
0:02:32.7]} 20. Rfc1 {[%clk 0:02:14.3]} 20... Nb4 {[%clk 0:02:29]} 21. Qd2
{[%clk 0:02:09.2]} 21... Rxc3 {[%clk 0:02:21.7]} 22. Rxc3 {[%clk 0:02:09.8]}
22... Rxc3 {[%clk 0:02:22.8]} 23. Nxc3 {[%clk 0:02:09.8]} 23... Nbc6 {[%clk
0:02:21.2]} 24. Ne2 {[%clk 0:02:01.2]} 24... Qa5 {[%clk 0:02:20.8]} 25. Qxa5
{[%clk 0:01:56]} 25... Nxa5 {[%clk 0:02:21.4]} 26. Ne1 {[%clk 0:01:57.4]} 26...
Nb7 {[%clk 0:02:16.1]} 27. Nd3 {[%clk 0:01:57.5]} 27... Nc6 {[%clk 0:02:17.1]}
28. Bd2 {[%clk 0:01:50.1]} 28... Bf8 {[%clk 0:02:18]} 29. f4 {[%clk 0:01:43.4]}
29... Be7 {[%clk 0:02:09.8]} 30. Be1 {[%clk 0:01:44]} 30... a5 {[%clk
0:01:58.3]} 31. f5 {[%clk 0:01:40.7]} 31... gxf5 {[%clk 0:01:50.9]} 32. gxf5
{[%clk 0:01:41.4]} 32... a4 {[%clk 0:01:52.4]} 33. f6 {[%clk 0:01:37.8]} 33...
Bd8 {[%clk 0:01:41.6]} 34. b4 {[%clk 0:01:33.4]} 34... Bb6 {[%clk 0:01:41.9]}
35. Bf2 {[%clk 0:01:22.7]} 35... Nb8 {[%clk 0:01:31.2]} 36. Kf1 {[%clk
0:01:11.5]} 36... Nd8 {[%clk 0:01:23.5]} 37. Ke1 {[%clk 0:01:04.4]} 37... Na6
{[%clk 0:01:18.8]} 38. Kd2 {[%clk 0:01:03]} 38... Nc6 {[%clk 0:01:18.5]} 39. Kc3
{[%clk 0:01:02.8]} 39... Ba7 {[%clk 0:00:56.3]} 40. Nef4 {[%clk 0:00:48.5]}
40... Bb6 {[%clk 0:00:54.7]} 41. a3 {[%clk 0:00:21.8]} 41... Kg8 {[%clk
0:00:51.1]} 42. Bf1 {[%clk 0:00:22.1]} 42... Nab8 {[%clk 0:00:39.5]} 43. Be2
{[%clk 0:00:17.4]} 43... Na6 {[%clk 0:00:37.4]} 44. Be3 {[%clk 0:00:17.9]} 44...
Nc7 {[%clk 0:00:31.6]} 45. Ng2 {[%clk 0:00:13.8]} 45... Kh7 {[%clk 0:00:26.1]}
46. Bh5 {[%clk 0:00:13.2]} 46... Be8 {[%clk 0:00:27.3]} 47. Ngf4 {[%clk
0:00:14.4]} 47... Na7 {[%clk 0:00:25.2]} 48. Ne2 {[%clk 0:00:11.9]} 48... Nc6
{[%clk 0:00:26.2]} 49. Kd2 {[%clk 0:00:09.5]} 49... Na7 {[%clk 0:00:26.1]} 50.
Nf2 {[%clk 0:00:10.2]} 50... Nc6 {[%clk 0:00:26.9]} 51. Ng4 {[%clk 0:00:11]}
51... Na8 {[%clk 0:00:20.1]} 52. Kc3 {[%clk 0:00:11.5]} 52... Nc7 {[%clk
0:00:17.1]} 53. Nxh6 {[%clk 0:00:11.3]} 53... Nxe5 {[%clk 0:00:18.3]} 54. dxe5
{[%clk 0:00:10.9]} 54... Bxe3 {[%clk 0:00:18.9]} 55. Nxf7 {[%clk 0:00:10.6]}
55... d4+ {[%clk 0:00:14.7]} 56. Kd3 {[%clk 0:00:10.5]} 56... Nd5 {[%clk
0:00:13.5]} 57. Nxd4 {[%clk 0:00:10.7]} 57... Bf4 {[%clk 0:00:13.3]} 58. Ng5+
{[%clk 0:00:09.7]} 58... Bxg5 {[%clk 0:00:13.9]} 59. Bxe8 {[%clk 0:00:10.6]}
59... Bxh4 {[%clk 0:00:15.2]} 60. Bxb5 {[%clk 0:00:11.2]} 60... Kg6 {[%clk
0:00:14.7]} 61. Be8+ {[%clk 0:00:09]} 61... Kh7 {[%clk 0:00:15.1]} 62. Nxe6
{[%clk 0:00:09]} 1-0